[Event "Titled Tuesday Blitz January 31 Early 2023"]
[White "Pavlidou, Ekaterini"]
[Black "Khamdamova, Afruza"]
[WhiteFideId "4213262"]
[BlackFideId "14210444"]
[WhiteElo "2088"]
[BlackElo "2162"]
[Result "0-1"]
[Round "07"]
[TimeControl "180+2"]
[Date "2023.01.31"]
[WhiteClock "0:00:16"]
[BlackClock "0:00:04"]

1. d4 {[%clk 0:02:54]}  Nf6 {[%clk 0:03:00]} 2. c4 {[%clk 0:02:50]}  e6 {[%clk 0:03:00]} 3. Nf3 {[%clk 0:02:48]}  d5 {[%clk 0:03:00]} 4. g3 {[%clk 0:02:47]}  dxc4 {[%clk 0:02:59]} 5. Bg2 {[%clk 0:02:47]}  c5 {[%clk 0:02:59]} 6. O-O {[%clk 0:02:46]}  Nc6 {[%clk 0:02:57]} 7. e3 {[%clk 0:02:43]}  cxd4 {[%clk 0:02:54]} 8. exd4 {[%clk 0:02:42]}  Nd5 {[%clk 0:02:39]} 9. Re1 {[%clk 0:02:37]}  Be7 {[%clk 0:02:39]} 10. a3 {[%clk 0:02:33]}  O-O {[%clk 0:02:38]} 11. Qc2 {[%clk 0:02:34]}  b5 {[%clk 0:02:35]} 12. Nbd2 {[%clk 0:02:29]}  Bb7 {[%clk 0:02:26]} 13. Ne4 {[%clk 0:02:27]}  Rc8 {[%clk 0:02:21]} 14. Bg5 {[%clk 0:02:25]}  h6 {[%clk 0:02:05]} 15. Bxe7 {[%clk 0:02:23]}  Ncxe7 {[%clk 0:02:04]} 16. Nc5 {[%clk 0:02:22]}  Ba8 {[%clk 0:02:04]} 17. Rad1 {[%clk 0:02:17]}  Nc6 {[%clk 0:01:48]} 18. Ne4 {[%clk 0:02:09]}  Qc7 {[%clk 0:01:36]} 19. h4 {[%clk 0:02:08]}  Rfd8 {[%clk 0:01:32]} 20. Qe2 {[%clk 0:02:01]}  Nce7 {[%clk 0:01:03]} 21. Nc5 {[%clk 0:01:59]}  Nf5 {[%clk 0:00:40]} 22. Bh3 {[%clk 0:01:36]}  Nxg3 {[%clk 0:00:33]} 23. fxg3 {[%clk 0:01:34]}  Qxg3+ {[%clk 0:00:33]} 24. Qg2 {[%clk 0:01:32]}  Qc7 {[%clk 0:00:28]} 25. Nxe6 {[%clk 0:01:31]}  fxe6 {[%clk 0:00:23]} 26. Bxe6+ {[%clk 0:01:30]}  Kh8 {[%clk 0:00:23]} 27. Ne5 {[%clk 0:01:16]}  Nf4 {[%clk 0:00:22]} 28. Qg3 {[%clk 0:01:11]}  Nxe6 {[%clk 0:00:20]} 29. Ng6+ {[%clk 0:01:05]}  Kg8 {[%clk 0:00:18]} 30. Qxc7 {[%clk 0:01:01]}  Rxc7 {[%clk 0:00:12]} 31. Rxe6 {[%clk 0:01:00]}  Kf7 {[%clk 0:00:11]} 32. Nf4 {[%clk 0:00:54]}  Rcd7 {[%clk 0:00:11]} 33. Rf1 {[%clk 0:00:43]}  g5 {[%clk 0:00:11]} 34. hxg5 {[%clk 0:00:34]}  hxg5 {[%clk 0:00:11]} 35. Re5 {[%clk 0:00:24]}  gxf4 {[%clk 0:00:11]} 36. Rxf4+ {[%clk 0:00:25]}  Kg8 {[%clk 0:00:11]} 37. Kf2 {[%clk 0:00:22]}  Rg7 {[%clk 0:00:09]} 38. Ref5 {[%clk 0:00:18]}  Bd5 {[%clk 0:00:07]} 39. Rf6 {[%clk 0:00:16]}  a5 {[%clk 0:00:07]} 40. a4 {[%clk 0:00:15]}  b4 {[%clk 0:00:07]} 41. R6f5 {[%clk 0:00:15]}  c3 {[%clk 0:00:07]} 42. bxc3 {[%clk 0:00:16]}  bxc3 {[%clk 0:00:07]} 43. Ke3 {[%clk 0:00:16]}  c2 {[%clk 0:00:05]} 44. Kd2 {[%clk 0:00:16]}  Rc8 {[%clk 0:00:05]} 45. Rf1 {[%clk 0:00:15]}  Be6 {[%clk 0:00:04]} 46. Kc1 {[%clk 0:00:16]}  Bxf5 {[%clk 0:00:04]} 0-1


[Site "https://www.chess.com"]

[Event "Titled Tuesday Blitz January 31 Early 2023"]
[White "Pace, Christopher"]
[Black "Delorme, Axel"]
[WhiteFideId "2610167"]
[BlackFideId "632023"]
[WhiteElo "2053"]
[BlackElo "2483"]
[Result "0-1"]
[Round "07"]
[TimeControl "180+2"]
[Date "2023.01.31"]
[WhiteClock "0:00:05"]
[BlackClock "0:00:18"]

1. d4 {[%clk 0:02:57]}  d5 {[%clk 0:02:58]} 2. c4 {[%clk 0:02:57]}  e6 {[%clk 0:02:59]} 3. Nc3 {[%clk 0:02:57]}  c5 {[%clk 0:02:59]} 4. cxd5 {[%clk 0:02:51]}  exd5 {[%clk 0:03:00]} 5. Nf3 {[%clk 0:02:51]}  Nc6 {[%clk 0:03:00]} 6. g3 {[%clk 0:02:42]}  Nf6 {[%clk 0:03:00]} 7. Bg2 {[%clk 0:02:43]}  cxd4 {[%clk 0:03:01]} 8. Nxd4 {[%clk 0:02:43]}  Bc5 {[%clk 0:03:02]} 9. Nb3 {[%clk 0:02:39]}  Bb6 {[%clk 0:03:01]} 10. Nxd5 {[%clk 0:02:17]}  Be6 {[%clk 0:03:00]} 11. Nxf6+ {[%clk 0:02:16]}  Qxf6 {[%clk 0:03:01]} 12. O-O {[%clk 0:02:16]}  Rd8 {[%clk 0:02:54]} 13. Qc2 {[%clk 0:02:10]}  O-O {[%clk 0:02:53]} 14. Bf4 {[%clk 0:01:16]}  Rfe8 {[%clk 0:02:42]} 15. Rad1 {[%clk 0:01:13]}  Rxd1 {[%clk 0:02:30]} 16. Rxd1 {[%clk 0:00:54]}  Bxb3 {[%clk 0:02:29]} 17. Qxb3 {[%clk 0:00:40]}  Nd4 {[%clk 0:01:55]} 18. Qa4 {[%clk 0:00:40]}  Nxe2+ {[%clk 0:01:53]} 19. Kf1 {[%clk 0:00:27]}  Qe6 {[%clk 0:01:18]} 20. Bd5 {[%clk 0:00:14]}  Qe7 {[%clk 0:01:03]} 21. Bd6 {[%clk 0:00:13]}  Qd8 {[%clk 0:00:31]} 22. Ba3 {[%clk 0:00:07]}  Qc8 {[%clk 0:00:25]} 23. Qb3 {[%clk 0:00:05]}  Qf5 {[%clk 0:00:19]} 24. Bg2 {[%clk 0:00:05]}  Qxf2# {[%clk 0:00:18]} 0-1


[Site "https://www.chess.com"]

[Event "Titled Tuesday Blitz January 31 Early 2023"]
[White "Seresin, Francesco"]
[Black "Rose, Felix"]
[WhiteFideId "886335"]
[BlackFideId "5105722"]
[WhiteElo "2348"]
[BlackElo "2091"]
[Result "1-0"]
[Round "07"]
[TimeControl "180+2"]
[Date "2023.01.31"]
[WhiteClock "0:00:59"]
[BlackClock "0:00:07"]

1. d4 {[%clk 0:03:00]}  d5 {[%clk 0:02:58]} 2. c4 {[%clk 0:03:00]}  e6 {[%clk 0:02:59]} 3. Nf3 {[%clk 0:02:59]}  Nf6 {[%clk 0:02:59]} 4. Nc3 {[%clk 0:02:58]}  Be7 {[%clk 0:02:58]} 5. Bg5 {[%clk 0:02:57]}  Nbd7 {[%clk 0:02:58]} 6. e3 {[%clk 0:02:55]}  h6 {[%clk 0:02:59]} 7. Bxf6 {[%clk 0:02:55]}  Nxf6 {[%clk 0:02:59]} 8. Qc2 {[%clk 0:02:52]}  O-O {[%clk 0:02:50]} 9. O-O-O {[%clk 0:02:53]}  c6 {[%clk 0:02:49]} 10. cxd5 {[%clk 0:02:52]}  cxd5 {[%clk 0:02:48]} 11. Kb1 {[%clk 0:02:51]}  Qa5 {[%clk 0:02:48]} 12. Rc1 {[%clk 0:02:50]}  Bd7 {[%clk 0:02:48]} 13. Bd3 {[%clk 0:02:49]}  Rfc8 {[%clk 0:02:47]} 14. Qb3 {[%clk 0:02:47]}  a6 {[%clk 0:02:32]} 15. Ne5 {[%clk 0:02:46]}  b5 {[%clk 0:01:59]} 16. Ne2 {[%clk 0:02:41]}  b4 {[%clk 0:01:51]} 17. Nxd7 {[%clk 0:02:22]}  Nxd7 {[%clk 0:01:51]} 18. Rxc8+ {[%clk 0:02:22]}  Rxc8 {[%clk 0:01:50]} 19. Rc1 {[%clk 0:02:23]}  Rxc1+ {[%clk 0:01:49]} 20. Nxc1 {[%clk 0:02:23]}  Nb6 {[%clk 0:01:26]} 21. Qc2 {[%clk 0:02:24]}  Bf8 {[%clk 0:00:59]} 22. Nb3 {[%clk 0:02:22]}  Qa4 {[%clk 0:00:57]} 23. Qc7 {[%clk 0:02:23]}  Nd7 {[%clk 0:00:42]} 24. Qb7 {[%clk 0:02:09]}  a5 {[%clk 0:00:24]} 25. Qc7 {[%clk 0:02:08]}  Nf6 {[%clk 0:00:15]} 26. Qxa5 {[%clk 0:02:05]}  Qc6 {[%clk 0:00:15]} 27. f3 {[%clk 0:02:00]}  Qd6 {[%clk 0:00:13]} 28. g3 {[%clk 0:01:59]}  e5 {[%clk 0:00:12]} 29. Qa6 {[%clk 0:01:57]}  Qb8 {[%clk 0:00:09]} 30. dxe5 {[%clk 0:01:47]}  Qxe5 {[%clk 0:00:09]} 31. Qa7 {[%clk 0:01:47]}  h5 {[%clk 0:00:08]} 32. Qd4 {[%clk 0:01:47]}  Qd6 {[%clk 0:00:08]} 33. Nc1 {[%clk 0:01:39]}  h4 {[%clk 0:00:08]} 34. Ne2 {[%clk 0:01:39]}  hxg3 {[%clk 0:00:09]} 35. hxg3 {[%clk 0:01:39]}  Qc7 {[%clk 0:00:09]} 36. Qf4 {[%clk 0:01:27]}  Qa7 {[%clk 0:00:08]} 37. g4 {[%clk 0:01:25]}  Bc5 {[%clk 0:00:08]} 38. Nd4 {[%clk 0:01:24]}  Bxd4 {[%clk 0:00:08]} 39. Qxd4 {[%clk 0:01:22]}  Qxd4 {[%clk 0:00:08]} 40. exd4 {[%clk 0:01:22]}  Kf8 {[%clk 0:00:08]} 41. a4 {[%clk 0:01:21]}  bxa3 {[%clk 0:00:09]} 42. bxa3 {[%clk 0:01:22]}  Ke7 {[%clk 0:00:10]} 43. a4 {[%clk 0:01:22]}  Kd6 {[%clk 0:00:10]} 44. Kc2 {[%clk 0:01:22]}  Kc6 {[%clk 0:00:11]} 45. a5 {[%clk 0:01:22]}  g5 {[%clk 0:00:10]} 46. Kd2 {[%clk 0:01:18]}  Ne8 {[%clk 0:00:10]} 47. Ke3 {[%clk 0:01:18]}  Nd6 {[%clk 0:00:10]} 48. f4 {[%clk 0:01:18]}  f6 {[%clk 0:00:11]} 49. fxg5 {[%clk 0:01:17]}  fxg5 {[%clk 0:00:12]} 50. Kd2 {[%clk 0:01:17]}  Nb7 {[%clk 0:00:11]} 51. a6 {[%clk 0:01:15]}  Nd6 {[%clk 0:00:11]} 52. Kc3 {[%clk 0:01:16]}  Kb6 {[%clk 0:00:12]} 53. Kb4 {[%clk 0:01:16]}  Nc8 {[%clk 0:00:12]} 54. Bf1 {[%clk 0:01:13]}  Na7 {[%clk 0:00:10]} 55. Bg2 {[%clk 0:01:14]}  Kxa6 {[%clk 0:00:11]} 56. Bxd5 {[%clk 0:01:13]}  Kb6 {[%clk 0:00:11]} 57. Be4 {[%clk 0:01:12]}  Kc7 {[%clk 0:00:12]} 58. Kc5 {[%clk 0:01:12]}  Nc8 {[%clk 0:00:12]} 59. Kd5 {[%clk 0:01:10]}  Kd8 {[%clk 0:00:09]} 60. Ke5 {[%clk 0:01:09]}  Ke7 {[%clk 0:00:09]} 61. Bf5 {[%clk 0:01:10]}  Nd6 {[%clk 0:00:10]} 62. d5 {[%clk 0:01:09]}  Nb5 {[%clk 0:00:10]} 63. Bc8 {[%clk 0:01:08]}  Nd6 {[%clk 0:00:10]} 64. Be6 {[%clk 0:01:09]}  Nc4+ {[%clk 0:00:11]} 65. Kf5 {[%clk 0:01:09]}  Ne3+ {[%clk 0:00:10]} 66. Kxg5 {[%clk 0:01:09]}  Nc4 {[%clk 0:00:10]} 67. Kf5 {[%clk 0:01:09]}  Nd6+ {[%clk 0:00:11]} 68. Kg6 {[%clk 0:01:08]}  Ne4 {[%clk 0:00:11]} 69. g5 {[%clk 0:01:08]}  Kd6 {[%clk 0:00:11]} 70. Kf5 {[%clk 0:01:06]}  Ng3+ {[%clk 0:00:11]} 71. Kg4 {[%clk 0:01:04]}  Ne4 {[%clk 0:00:11]} 72. g6 {[%clk 0:01:05]}  Ke7 {[%clk 0:00:11]} 73. g7 {[%clk 0:01:02]}  Nf6+ {[%clk 0:00:09]} 74. Kf5 {[%clk 0:01:02]}  Nh5 {[%clk 0:00:07]} 75. g8=Q {[%clk 0:01:00]}  Kd6 {[%clk 0:00:07]} 76. Qd8+ {[%clk 0:00:59]}  Kc5 {[%clk 0:00:07]} 77. Qg5 {[%clk 0:00:59]} 1-0


[Site "https://www.chess.com"]

[Event "Titled Tuesday Blitz January 31 Early 2023"]
[White "Martin, Lewis"]
[Black "Devaev, Alexander"]
[WhiteFideId "410551"]
[BlackFideId "4169395"]
[WhiteElo "2135"]
[BlackElo "2325"]
[Result "0-1"]
[Round "07"]
[TimeControl "180+2"]
[Date "2023.01.31"]
[WhiteClock "0:00:03"]
[BlackClock "0:00:08"]

1. e4 {[%clk 0:02:45]}  c6 {[%clk 0:02:59]} 2. b3 {[%clk 0:02:40]}  d5 {[%clk 0:03:00]} 3. exd5 {[%clk 0:02:38]}  cxd5 {[%clk 0:03:00]} 4. Bb2 {[%clk 0:02:39]}  Nc6 {[%clk 0:02:58]} 5. Nf3 {[%clk 0:02:37]}  Bg4 {[%clk 0:02:54]} 6. Bb5 {[%clk 0:02:32]}  e6 {[%clk 0:02:47]} 7. O-O {[%clk 0:02:27]}  a6 {[%clk 0:02:43]} 8. Bxc6+ {[%clk 0:02:26]}  bxc6 {[%clk 0:02:44]} 9. d4 {[%clk 0:02:25]}  Nf6 {[%clk 0:02:42]} 10. Nbd2 {[%clk 0:02:25]}  Bd6 {[%clk 0:02:39]} 11. Re1 {[%clk 0:02:25]}  Qb8 {[%clk 0:02:38]} 12. h3 {[%clk 0:02:25]}  Bh5 {[%clk 0:02:37]} 13. c4 {[%clk 0:02:24]}  O-O {[%clk 0:02:35]} 14. Qc2 {[%clk 0:02:19]}  Bg6 {[%clk 0:02:30]} 15. Qc1 {[%clk 0:02:17]}  Nd7 {[%clk 0:02:18]} 16. Ba3 {[%clk 0:02:13]}  a5 {[%clk 0:01:54]} 17. Ne5 {[%clk 0:02:08]}  Nxe5 {[%clk 0:01:50]} 18. dxe5 {[%clk 0:02:08]}  Bb4 {[%clk 0:01:51]} 19. Bxb4 {[%clk 0:02:04]}  Qxb4 {[%clk 0:01:43]} 20. a3 {[%clk 0:02:02]}  Qb7 {[%clk 0:01:40]} 21. Qc3 {[%clk 0:01:58]}  Rfb8 {[%clk 0:01:33]} 22. c5 {[%clk 0:01:48]}  h6 {[%clk 0:01:25]} 23. Ra2 {[%clk 0:01:48]}  Qa7 {[%clk 0:01:18]} 24. Rb2 {[%clk 0:01:44]}  Rb5 {[%clk 0:01:17]} 25. Rc1 {[%clk 0:01:37]}  Rab8 {[%clk 0:01:17]} 26. Nf3 {[%clk 0:01:34]}  Rc8 {[%clk 0:01:06]} 27. Nd4 {[%clk 0:01:33]}  Rb7 {[%clk 0:01:06]} 28. f4 {[%clk 0:01:29]}  Be4 {[%clk 0:01:04]} 29. g4 {[%clk 0:01:19]}  Re7 {[%clk 0:00:45]} 30. b4 {[%clk 0:01:05]}  axb4 {[%clk 0:00:44]} 31. axb4 {[%clk 0:01:06]}  Qa6 {[%clk 0:00:41]} 32. b5 {[%clk 0:01:02]}  cxb5 {[%clk 0:00:40]} 33. Rxb5 {[%clk 0:01:00]}  Ra7 {[%clk 0:00:28]} 34. c6 {[%clk 0:00:52]}  Qa4 {[%clk 0:00:21]} 35. Rb4 {[%clk 0:00:37]}  Qa5 {[%clk 0:00:20]} 36. Rb7 {[%clk 0:00:26]}  Qa4 {[%clk 0:00:18]} 37. Qb4 {[%clk 0:00:19]}  Qa2 {[%clk 0:00:16]} 38. Qb2 {[%clk 0:00:17]}  Qa6 {[%clk 0:00:14]} 39. Rb8 {[%clk 0:00:16]}  Ra8 {[%clk 0:00:14]} 40. Rxa8 {[%clk 0:00:13]}  Rxa8 {[%clk 0:00:12]} 41. c7 {[%clk 0:00:14]}  Kh7 {[%clk 0:00:09]} 42. Qb8 {[%clk 0:00:10]}  Qd3 {[%clk 0:00:08]} 43. Qxa8 {[%clk 0:00:03]}  Qxd4+ {[%clk 0:00:08]} 44. Kh2 {[%clk 0:00:03]}  Qf2# {[%clk 0:00:08]} 0-1


[Site "https://www.chess.com"]

[Event "Titled Tuesday Blitz January 31 Early 2023"]
[White "Sowul, Bartosz"]
[Black "Tuleyeva-Aketayeva, Dana"]
[WhiteFideId "1137590"]
[BlackFideId "13701932"]
[WhiteElo "2269"]
[BlackElo "2130"]
[Result "1-0"]
[Round "07"]
[TimeControl "180+2"]
[Date "2023.01.31"]
[WhiteClock "0:00:47"]
[BlackClock "0:00:02"]

1. e4 {[%clk 0:03:00]}  c5 {[%clk 0:02:59]} 2. Nf3 {[%clk 0:03:00]}  Nc6 {[%clk 0:02:59]} 3. Bb5 {[%clk 0:02:59]}  g6 {[%clk 0:02:59]} 4. Bxc6 {[%clk 0:02:55]}  dxc6 {[%clk 0:03:00]} 5. d3 {[%clk 0:02:55]}  Bg7 {[%clk 0:03:01]} 6. h3 {[%clk 0:02:56]}  Nf6 {[%clk 0:03:01]} 7. Nc3 {[%clk 0:02:56]}  O-O {[%clk 0:03:02]} 8. Be3 {[%clk 0:02:55]}  b6 {[%clk 0:03:02]} 9. Qd2 {[%clk 0:02:53]}  Re8 {[%clk 0:03:01]} 10. O-O-O {[%clk 0:02:51]}  c4 {[%clk 0:02:51]} 11. dxc4 {[%clk 0:02:45]}  Qxd2+ {[%clk 0:02:48]} 12. Rxd2 {[%clk 0:02:46]}  Be6 {[%clk 0:02:47]} 13. b3 {[%clk 0:02:40]}  Nd7 {[%clk 0:02:34]} 14. Bd4 {[%clk 0:02:34]}  Bh6 {[%clk 0:02:29]} 15. Be3 {[%clk 0:02:32]}  Bg7 {[%clk 0:02:27]} 16. Ne2 {[%clk 0:02:29]}  Nc5 {[%clk 0:02:25]} 17. Bxc5 {[%clk 0:02:17]}  bxc5 {[%clk 0:02:26]} 18. Kb1 {[%clk 0:02:14]}  Bh6 {[%clk 0:02:22]} 19. Rd3 {[%clk 0:02:13]}  f5 {[%clk 0:02:15]} 20. e5 {[%clk 0:02:10]}  a5 {[%clk 0:01:57]} 21. Nc3 {[%clk 0:02:05]}  g5 {[%clk 0:01:39]} 22. Na4 {[%clk 0:02:00]}  Rab8 {[%clk 0:01:27]} 23. Ka1 {[%clk 0:01:41]}  Bg7 {[%clk 0:01:21]} 24. Re1 {[%clk 0:01:37]}  g4 {[%clk 0:01:15]} 25. Ng5 {[%clk 0:01:34]}  Bc8 {[%clk 0:00:57]} 26. Nxc5 {[%clk 0:01:34]}  e6 {[%clk 0:00:48]} 27. hxg4 {[%clk 0:01:23]}  Bh6 {[%clk 0:00:39]} 28. Nf3 {[%clk 0:01:15]}  fxg4 {[%clk 0:00:39]} 29. Nd4 {[%clk 0:01:16]}  Bf8 {[%clk 0:00:34]} 30. Ne4 {[%clk 0:01:14]}  Bg7 {[%clk 0:00:31]} 31. Nd6 {[%clk 0:01:08]}  Rd8 {[%clk 0:00:27]} 32. Nxc6 {[%clk 0:01:07]}  Ba6 {[%clk 0:00:15]} 33. Nxb8 {[%clk 0:01:03]}  Rxb8 {[%clk 0:00:15]} 34. c3 {[%clk 0:01:01]}  Rd8 {[%clk 0:00:11]} 35. Rd4 {[%clk 0:00:59]}  h5 {[%clk 0:00:06]} 36. c5 {[%clk 0:00:54]}  Kf8 {[%clk 0:00:03]} 37. c6 {[%clk 0:00:54]}  Ke7 {[%clk 0:00:02]} 38. c7 {[%clk 0:00:52]}  Rf8 {[%clk 0:00:02]} 39. Rd2 {[%clk 0:00:47]} 1-0


[Site "https://www.chess.com"]

[Event "Titled Tuesday Blitz January 31 Early 2023"]
[White "Mangialardo, Tiago Carvalho"]
[Black "Shuvalov, Evgenij"]
[WhiteFideId "2130718"]
[BlackFideId "4187237"]
[WhiteElo "1965"]
[BlackElo "2038"]
[Result "0-1"]
[Round "07"]
[TimeControl "180+2"]
[Date "2023.01.31"]
[WhiteClock "0:00:12"]
[BlackClock "0:00:18"]

1. e4 {[%clk 0:02:37]}  e6 {[%clk 0:02:59]} 2. d4 {[%clk 0:02:37]}  d5 {[%clk 0:02:59]} 3. exd5 {[%clk 0:02:38]}  exd5 {[%clk 0:02:59]} 4. Nf3 {[%clk 0:02:38]}  Nf6 {[%clk 0:02:58]} 5. Bd3 {[%clk 0:02:38]}  c5 {[%clk 0:02:57]} 6. c3 {[%clk 0:02:36]}  Nc6 {[%clk 0:02:56]} 7. O-O {[%clk 0:02:31]}  c4 {[%clk 0:02:56]} 8. Bc2 {[%clk 0:02:31]}  Be7 {[%clk 0:02:56]} 9. Bf4 {[%clk 0:02:31]}  Bg4 {[%clk 0:02:54]} 10. Nbd2 {[%clk 0:02:30]}  O-O {[%clk 0:02:54]} 11. Re1 {[%clk 0:02:30]}  Bh5 {[%clk 0:02:49]} 12. Nf1 {[%clk 0:02:27]}  Bg6 {[%clk 0:02:48]} 13. Bxg6 {[%clk 0:02:13]}  hxg6 {[%clk 0:02:49]} 14. Qc2 {[%clk 0:01:50]}  Ne4 {[%clk 0:02:47]} 15. Ng3 {[%clk 0:01:45]}  f5 {[%clk 0:02:40]} 16. Ne5 {[%clk 0:01:33]}  g5 {[%clk 0:02:36]} 17. Bd2 {[%clk 0:01:19]}  Nxe5 {[%clk 0:02:33]} 18. dxe5 {[%clk 0:01:20]}  Bc5 {[%clk 0:02:32]} 19. Re2 {[%clk 0:00:59]}  Qe7 {[%clk 0:02:24]} 20. Nxe4 {[%clk 0:00:47]}  fxe4 {[%clk 0:02:22]} 21. Rd1 {[%clk 0:00:45]}  Qxe5 {[%clk 0:02:19]} 22. Be3 {[%clk 0:00:45]}  Bxe3 {[%clk 0:02:19]} 23. Rxe3 {[%clk 0:00:46]}  Rf5 {[%clk 0:02:13]} 24. f3 {[%clk 0:00:40]}  Qf4 {[%clk 0:02:12]} 25. Qd2 {[%clk 0:00:34]}  exf3 {[%clk 0:02:11]} 26. Rxf3 {[%clk 0:00:23]}  Qxd2 {[%clk 0:02:09]} 27. Rxd2 {[%clk 0:00:24]}  Rxf3 {[%clk 0:02:08]} 28. gxf3 {[%clk 0:00:25]}  Rd8 {[%clk 0:02:08]} 29. Kf2 {[%clk 0:00:25]}  Kf7 {[%clk 0:02:08]} 30. Ke3 {[%clk 0:00:26]}  Ke6 {[%clk 0:02:08]} 31. Kd4 {[%clk 0:00:26]}  Rf8 {[%clk 0:02:08]} 32. Re2+ {[%clk 0:00:26]}  Kd6 {[%clk 0:02:07]} 33. Rf2 {[%clk 0:00:26]}  Re8 {[%clk 0:02:02]} 34. Rg2 {[%clk 0:00:23]}  Re5 {[%clk 0:02:00]} 35. a4 {[%clk 0:00:23]}  b6 {[%clk 0:01:59]} 36. Rf2 {[%clk 0:00:13]}  g4 {[%clk 0:00:19]} 37. Rg2 {[%clk 0:00:13]}  gxf3 {[%clk 0:00:18]} 38. Rg6+ {[%clk 0:00:14]}  Re6 {[%clk 0:00:18]} 39. Rxg7 {[%clk 0:00:12]}  Re4# {[%clk 0:00:18]} 0-1


[Site "https://www.chess.com"]

[Event "Titled Tuesday Blitz January 31 Early 2023"]
[White "Cueto, Jonny"]
[Black "Mkrtchian, Lilit"]
[WhiteFideId "3300145"]
[BlackFideId "13300601"]
[WhiteElo "2122"]
[BlackElo "2389"]
[Result "0-1"]
[Round "07"]
[TimeControl "180+2"]
[Date "2023.01.31"]
[WhiteClock "0:00:13"]
[BlackClock "0:00:11"]

1. d4 {[%clk 0:03:00]}  Nf6 {[%clk 0:02:59]} 2. Bf4 {[%clk 0:03:00]}  c5 {[%clk 0:02:58]} 3. d5 {[%clk 0:02:59]}  g6 {[%clk 0:02:58]} 4. Nc3 {[%clk 0:02:58]}  Bg7 {[%clk 0:02:58]} 5. e4 {[%clk 0:02:59]}  d6 {[%clk 0:02:53]} 6. Bb5+ {[%clk 0:02:52]}  Nbd7 {[%clk 0:02:48]} 7. a4 {[%clk 0:02:49]}  a6 {[%clk 0:02:45]} 8. Be2 {[%clk 0:02:49]}  O-O {[%clk 0:02:41]} 9. Nf3 {[%clk 0:02:43]}  Rb8 {[%clk 0:02:36]} 10. O-O {[%clk 0:02:40]}  b5 {[%clk 0:02:27]} 11. axb5 {[%clk 0:02:39]}  axb5 {[%clk 0:02:27]} 12. Nd2 {[%clk 0:02:29]}  b4 {[%clk 0:02:15]} 13. Nb5 {[%clk 0:02:28]}  Ne8 {[%clk 0:02:07]} 14. Qc1 {[%clk 0:02:24]}  Ne5 {[%clk 0:01:59]} 15. c4 {[%clk 0:02:20]}  Nc7 {[%clk 0:01:50]} 16. Nxc7 {[%clk 0:02:05]}  Qxc7 {[%clk 0:01:49]} 17. Nb3 {[%clk 0:01:52]}  f5 {[%clk 0:01:41]} 18. exf5 {[%clk 0:01:25]}  Bxf5 {[%clk 0:01:40]} 19. Bh6 {[%clk 0:01:25]}  e6 {[%clk 0:01:39]} 20. Bxg7 {[%clk 0:01:20]}  Qxg7 {[%clk 0:01:38]} 21. Qd2 {[%clk 0:01:13]}  exd5 {[%clk 0:01:30]} 22. Qxd5+ {[%clk 0:01:10]}  Nf7 {[%clk 0:01:30]} 23. Ra7 {[%clk 0:01:08]}  Qxb2 {[%clk 0:01:25]} 24. Bd1 {[%clk 0:00:55]}  Rbe8 {[%clk 0:01:19]} 25. Na5 {[%clk 0:00:44]}  Be6 {[%clk 0:01:15]} 26. Qc6 {[%clk 0:00:35]}  Qd4 {[%clk 0:00:24]} 27. Qc7 {[%clk 0:00:32]}  Bxc4 {[%clk 0:00:19]} 28. Nxc4 {[%clk 0:00:28]}  Qxc4 {[%clk 0:00:19]} 29. Ba4 {[%clk 0:00:22]}  Re2 {[%clk 0:00:17]} 30. Qb7 {[%clk 0:00:17]}  Qd4 {[%clk 0:00:16]} 31. Bc6 {[%clk 0:00:15]}  Re5 {[%clk 0:00:12]} 32. Bf3 {[%clk 0:00:14]}  c4 {[%clk 0:00:12]} 33. Rd1 {[%clk 0:00:13]}  Qxd1+ {[%clk 0:00:11]} 0-1


[Site "https://www.chess.com"]

[Event "Titled Tuesday Blitz January 31 Early 2023"]
[White "SicilianPanzer"]
[Black "Martinez, Shawn"]
[BlackFideId "2039770"]
[WhiteElo "2195"]
[BlackElo "1881"]
[Result "1-0"]
[Round "07"]
[TimeControl "180+2"]
[Date "2023.01.31"]
[WhiteClock "0:00:07"]
[BlackClock "0:00:08"]

1. d4 {[%clk 0:03:00]}  Nf6 {[%clk 0:02:55]} 2. c4 {[%clk 0:03:00]}  g6 {[%clk 0:02:56]} 3. h3 {[%clk 0:02:59]}  Bg7 {[%clk 0:02:56]} 4. Nc3 {[%clk 0:02:59]}  d6 {[%clk 0:02:57]} 5. e4 {[%clk 0:02:58]}  O-O {[%clk 0:02:57]} 6. Be3 {[%clk 0:02:58]}  Nbd7 {[%clk 0:02:57]} 7. Nge2 {[%clk 0:02:53]}  e5 {[%clk 0:02:55]} 8. d5 {[%clk 0:02:52]}  a5 {[%clk 0:02:55]} 9. g4 {[%clk 0:02:50]}  b6 {[%clk 0:02:54]} 10. Ng3 {[%clk 0:02:40]}  Nc5 {[%clk 0:02:51]} 11. Be2 {[%clk 0:02:33]}  Bd7 {[%clk 0:02:46]} 12. h4 {[%clk 0:02:23]}  Ne8 {[%clk 0:02:28]} 13. h5 {[%clk 0:02:00]}  f5 {[%clk 0:02:18]} 14. gxf5 {[%clk 0:01:58]}  gxf5 {[%clk 0:02:15]} 15. exf5 {[%clk 0:01:57]}  Bxf5 {[%clk 0:02:11]} 16. Nxf5 {[%clk 0:01:55]}  Rxf5 {[%clk 0:02:12]} 17. Qc2 {[%clk 0:01:49]}  Rf7 {[%clk 0:02:01]} 18. O-O-O {[%clk 0:01:43]}  Kh8 {[%clk 0:01:57]} 19. Rdg1 {[%clk 0:01:33]}  Qf6 {[%clk 0:01:41]} 20. h6 {[%clk 0:01:09]}  Bf8 {[%clk 0:01:36]} 21. Rh5 {[%clk 0:01:06]}  c6 {[%clk 0:01:08]} 22. Rhg5 {[%clk 0:00:59]}  Bg7 {[%clk 0:00:51]} 23. hxg7+ {[%clk 0:00:52]}  Kg8 {[%clk 0:00:51]} 24. Rh5 {[%clk 0:00:40]}  Rxg7 {[%clk 0:00:33]} 25. Qxh7+ {[%clk 0:00:39]}  Kf7 {[%clk 0:00:33]} 26. Rxg7+ {[%clk 0:00:35]}  Qxg7 {[%clk 0:00:33]} 27. Rf5+ {[%clk 0:00:29]}  Nf6 {[%clk 0:00:33]} 28. Qxg7+ {[%clk 0:00:21]}  Kxg7 {[%clk 0:00:33]} 29. dxc6 {[%clk 0:00:19]}  Kg6 {[%clk 0:00:27]} 30. Rg5+ {[%clk 0:00:16]}  Kf7 {[%clk 0:00:27]} 31. Nd5 {[%clk 0:00:15]}  Nfe4 {[%clk 0:00:26]} 32. Rh5 {[%clk 0:00:12]}  Rg8 {[%clk 0:00:25]} 33. Rh7+ {[%clk 0:00:12]}  Ke6 {[%clk 0:00:24]} 34. c7 {[%clk 0:00:09]}  Nd7 {[%clk 0:00:11]} 35. Nxb6 {[%clk 0:00:09]}  Ndf6 {[%clk 0:00:08]} 36. Rh6 {[%clk 0:00:06]}  Kf5 {[%clk 0:00:05]} 37. c8=Q+ {[%clk 0:00:06]}  Rxc8 {[%clk 0:00:05]} 38. Nxc8 {[%clk 0:00:04]}  d5 {[%clk 0:00:06]} 39. cxd5 {[%clk 0:00:03]}  Nxd5 {[%clk 0:00:04]} 40. Bd3 {[%clk 0:00:02]}  Nf6 {[%clk 0:00:03]} 41. Rxf6+ {[%clk 0:00:01]}  Kxf6 {[%clk 0:00:02]} 42. Bxe4 {[%clk 0:00:02]}  Ke6 {[%clk 0:00:03]} 43. Nb6 {[%clk 0:00:02]}  Kd6 {[%clk 0:00:03]} 44. Nc4+ {[%clk 0:00:03]}  Ke6 {[%clk 0:00:03]} 45. Nxa5 {[%clk 0:00:04]}  Kd6 {[%clk 0:00:04]} 46. Nc4+ {[%clk 0:00:05]}  Ke6 {[%clk 0:00:05]} 47. Nxe5 {[%clk 0:00:05]}  Kxe5 {[%clk 0:00:05]} 48. f3 {[%clk 0:00:06]}  Kd6 {[%clk 0:00:06]} 49. a4 {[%clk 0:00:06]}  Kc7 {[%clk 0:00:06]} 50. a5 {[%clk 0:00:07]}  Kb8 {[%clk 0:00:07]} 51. a6 {[%clk 0:00:07]}  Kc8 {[%clk 0:00:07]} 52. a7 {[%clk 0:00:07]}  Kc7 {[%clk 0:00:08]} 53. a8=Q {[%clk 0:00:07]} 1-0


[Site "https://www.chess.com"]